[Event "FIDE World Rapid-ch Open 2018"]
[White "Firouzja, Alireza"]
[Black "Motylev, Alexander"]
[Site "St. Petersburg"]
[Round "11.19"]
[Annotator "ChessBase"]
[Result "1-0"]
[Date "2018.12.28"]
[WhiteElo "2607"]
[BlackElo "2644"]
[PlyCount "117"]
[TimeControl "900+10"]

1. c4 {[%emt 0:0:0]} Nf6 {[%emt 0:0:0]} 2. Nc3 {[%emt 0:0:0]} e5 {[%emt 0:0:4]
} 3. Nf3 {[%emt 0:0:2]} Nc6 {[%emt 0:0:2]} 4. a3 {[%emt 0:0:0]} g6 {[%emt 0:1:18]} 5. g3 {[%emt 0:0:36]} d5 {[%emt 0:0:16]} 6. cxd5 {[%emt 0:0:17]
} Nxd5 {[%emt 0:0:1]} 7. Bg2 {[%emt 0:0:37]} Nde7 {[%emt 0:0:0]} 8. b4 {[%emt 0:2:21]} Bg7 {[%emt 0:0:4]} 9. Bb2 {[%emt 0:0:4]} 0-0 {[%emt 0:0:5]
} 10. 0-0 {[%emt 0:0:6]} h6 {[%emt 0:1:19]} 11. Rc1 {[%emt 0:0:0]} Kh7 {[%emt 0:0:46]} 12. d3 {[%emt 0:0:31]} Rb8 {[%emt 0:2:29]} 13. e3 {[%emt 0:1:22]} a6 {[%emt 0:0:14]} 14. Qc2 {[%emt 0:0:24]} Bg4 {[%emt 0:0:0]} 15. h3 {[%emt 0:0:32]} Be6 {[%emt 0:0:51]} 16. Ne4 {[%emt 0:0:16]} Bd5 {[%emt 0:0:36]} 17. Nc5 {[%emt 0:0:15]} f5 {[%emt 0:0:3]} 18. e4 {[%emt 0:1:16]
} Bg8 {[%emt 0:0:5]} 19. Rfe1 {[%emt 0:1:28]} f4 {[%emt 0:0:0]} 20. h4 {[%emt 0:0:53]} Qc8 {[%emt 0:1:7]} 21. Kh2 {[%emt 0:0:13]} b6 {[%emt 0:0:4]
} 22. Nb3 {[%emt 0:0:58]} Qd7 {[%emt 0:1:55]} 23. Red1 {[%emt 0:0:47]
} Be6 {[%emt 0:1:4]} 24. Nbd2 {[%emt 0:2:38]} Bg4 {[%emt 0:0:0]} 25. Qc4 {[%emt 0:0:37]} b5 {[%emt 0:1:33]} 26. Qc5 {[%emt 0:0:10]} Qe6 {[%emt 0:0:9]} 27. Rf1 {[%emt 0:1:0]} Rbd8 {[%emt 0:0:8]} 28. Qc2 {[%emt 0:0:21]
} Qd6 {[%emt 0:0:24]} 29. Nb3 {[%emt 0:0:5]} Qxd3 {[%emt 0:0:0]} 30. Nc5 {[%emt 0:0:1]} Qxc2 {[%emt 0:0:14]} 31. Rxc2 {[%emt 0:0:1]} a5 {[%emt 0:0:7]} 32. bxa5 {[%emt 0:0:3]} Nd4 {[%emt 0:2:1]} 33. Nxd4 {[%emt 0:0:26]
} exd4 {[%emt 0:0:2]} 34. Nd3 {[%emt 0:0:3]} fxg3+ {[%emt 0:0:0]} 35. Kxg3 {[%emt 0:0:13]} Be6 {[%emt 0:0:1]} 36. Rxc7 {[%emt 0:0:4]
} Rf7 {[%emt 0:0:0]} 37. Rfc1 {[%emt 0:0:38]} Bc4 {[%emt 0:0:3]} 38. R1xc4 {[%emt 0:0:1]} bxc4 {[%emt 0:0:3]} 39. Rxc4 {[%emt 0:0:0]} Rb8 {[%emt 0:0:0]} 40. a6 {[%emt 0:0:15]} Ra8 {[%emt 0:0:10]} 41. Ra4 {[%emt 0:0:16]} Rf6 {[%emt 0:0:36]} 42. a7 {[%emt 0:0:2]} Rf7 {[%emt 0:0:1]} 43. h5 {[%emt 0:0:27]
} gxh5 {[%emt 0:0:49]} 44. f4 {[%emt 0:0:1]} Ng6 {[%emt 0:0:0]} 45. e5 {[%emt 0:0:2]} Raxa7 {[%emt 0:0:5]} 46. Rxd4 {[%emt 0:0:1]} Ne7 {[%emt 0:0:30]} 47. Be4+ {[%emt 0:0:8]} Kg8 {[%emt 0:0:11]} 48. Rd8+ {[%emt 0:0:35]
} Rf8 {[%emt 0:0:1]} 49. Rxf8+ {[%emt 0:0:1]} Bxf8 {[%emt 0:0:0]} 50. f5 {[%emt 0:0:1]} Nxf5+ {[%emt 0:0:23]} 51. Bxf5 {[%emt 0:0:2]
} Bxa3 {[%emt 0:0:1]} 52. Bd4 {[%emt 0:0:11]} Ra4 {[%emt 0:0:4]} 53. Be3 {[%emt 0:0:9]
} Kg7 {[%emt 0:0:10]} 54. Nf4 {[%emt 0:0:11]} h4+ {[%emt 0:0:0]} 55. Kg2 {[%emt 0:0:22]} Bb2 {[%emt 0:0:4]} 56. Nh5+ {[%emt 0:0:15]} Kh8 {[%emt 0:0:30]} 57. e6 {[%emt 0:0:15]} Ra5 {[%emt 0:0:18]} 58. e7 {[%emt 0:0:10]
} Re5 {[%emt 0:0:10]} 59. Bc5 {[%emt 0:0:0]} 1-0

[Event "FIDE World Rapid-ch Open 2018"]
[White "Ragger, Markus"]
[Black "Grischuk, Alexander"]
[Site "St. Petersburg"]
[Round "11.20"]
[Annotator "ChessBase"]
[Result "1/2-1/2"]
[Date "2018.12.28"]
[WhiteElo "2687"]
[BlackElo "2771"]
[PlyCount "53"]
[TimeControl "900+10"]

1. e4 {[%emt 0:0:0]} e5 {[%emt 0:0:5]} 2. Nf3 {[%emt 0:0:0]} Nc6 {[%emt 0:0:1]
} 3. Bc4 {[%emt 0:0:0]} Bc5 {[%emt 0:0:9]} 4. c3 {[%emt 0:0:0]} Nf6 {[%emt 0:0:2]} 5. d3 {[%emt 0:0:2]} a6 {[%emt 0:0:33]} 6. a4 {[%emt 0:0:9]
} d6 {[%emt 0:0:13]} 7. 0-0 {[%emt 0:0:4]} Ba7 {[%emt 0:0:3]
} 8. Re1 {[%emt 0:0:4]} h6 {[%emt 0:0:5]} 9. Nbd2 {[%emt 0:0:16]} g5 {[%emt 0:0:5]
} 10. b4 {[%emt 0:0:13]} Nh5 {[%emt 0:0:4]} 11. Nb3 {[%emt 0:0:0]} Qf6 {[%emt 0:0:11]} 12. Be3 {[%emt 0:0:26]} Bxe3 {[%emt 0:0:37]} 13. fxe3 {[%emt 0:1:11]} g4 {[%emt 0:0:7]} 14. Nfd2 {[%emt 0:0:56]} Qg5 {[%emt 0:0:19]
} 15. Qe2 {[%emt 0:0:47]} 0-0 {[%emt 0:0:8]} 16. Rf1 {[%emt 0:0:0]} Kg7 {[%emt 0:0:16]} 17. b5 {[%emt 0:1:16]} axb5 {[%emt 0:3:29]} 18. axb5 {[%emt 0:0:2]} Rxa1 {[%emt 0:0:2]} 19. Nxa1 {[%emt 0:0:26]} Ne7 {[%emt 0:0:12]
} 20. Nc2 {[%emt 0:0:2]} c6 {[%emt 0:3:6]} 21. bxc6 {[%emt 0:0:0]} bxc6 {[%emt 0:0:2]} 22. Bb3 {[%emt 0:0:49]} f5 {[%emt 0:3:51]} 23. exf5 {[%emt 0:1:6]} Nxf5 {[%emt 0:0:59]} 24. e4 {[%emt 0:3:8]} Ne7 {[%emt 0:1:49]
} 25. Rxf8 {[%emt 0:0:16]} Kxf8 {[%emt 0:0:1]} 26. Qf2+ {[%emt 0:0:10]
} Nf6 {[%emt 0:0:56]} 27. Ne3 {[%emt 0:1:8]} 1/2-1/2

[Event "FIDE World Rapid-ch Open 2018"]
[White "Sjugirov, Sanan"]
[Black "Antipov, Mikhail Al."]
[Site "St. Petersburg"]
[Round "11.21"]
[Annotator "ChessBase"]
[Result "0-1"]
[Date "2018.12.28"]
[WhiteElo "2663"]
[BlackElo "2589"]
[PlyCount "120"]
[TimeControl "900+10"]

1. d4 {[%emt 0:7:44]} Nf6 {[%emt 0:0:0]} 2. c4 {[%emt 0:0:8]} c6 {[%emt 0:0:0]} 3. Nf3 {[%emt 0:0:3]} d5 {[%emt 0:0:0]} 4. Nc3 {[%emt 0:0:4]} a6 {[%emt 0:0:0]} 5. cxd5 {[%emt 0:0:2]} cxd5 {[%emt 0:0:0]} 6. Bf4 {[%emt 0:0:2]
} Nc6 {[%emt 0:0:4]} 7. Rc1 {[%emt 0:0:11]} Bf5 {[%emt 0:0:0]} 8. e3 {[%emt 0:0:3]} Qb6 {[%emt 0:1:44]} 9. Be2 {[%emt 0:0:35]} Qxb2 {[%emt 0:1:8]
} 10. 0-0 {[%emt 0:0:3]} e6 {[%emt 0:1:21]} 11. Nh4 {[%emt 0:0:0]} Bg6 {[%emt 0:0:1]} 12. Nxg6 {[%emt 0:0:19]} hxg6 {[%emt 0:0:1]} 13. Na4 {[%emt 0:2:10]} Qa3 {[%emt 0:0:2]} 14. Rc3 {[%emt 0:0:9]} Qxa2 {[%emt 0:4:6]
} 15. Bd3 {[%emt 0:0:24]} Ne4 {[%emt 0:0:40]} 16. Rc1 {[%emt 0:0:0]} Qd2 {[%emt 0:2:9]} 17. Nb6 {[%emt 0:0:42]} Rd8 {[%emt 0:1:58]} 18. Bxe4 {[%emt 0:0:41]} Qxd1 {[%emt 0:0:2]} 19. Rfxd1 {[%emt 0:0:2]} dxe4 {[%emt 0:0:1]
} 20. Bc7 {[%emt 0:0:2]} Rd5 {[%emt 0:0:20]} 21. f3 {[%emt 0:0:0]} exf3 {[%emt 0:2:51]} 22. Nxd5 {[%emt 0:0:18]} exd5 {[%emt 0:0:2]} 23. gxf3 {[%emt 0:0:1]} Kd7 {[%emt 0:0:2]} 24. Bg3 {[%emt 0:0:12]} Bd6 {[%emt 0:0:34]
} 25. e4 {[%emt 0:0:8]} Rb8 {[%emt 0:0:20]} 26. Kg2 {[%emt 0:0:0]} Ra8 {[%emt 0:0:12]} 27. Bxd6 {[%emt 0:0:37]} Kxd6 {[%emt 0:0:2]} 28. Rc5 {[%emt 0:0:1]} Ne7 {[%emt 0:0:20]} 29. Rb1 {[%emt 0:0:19]} b5 {[%emt 0:0:7]
} 30. Ra1 {[%emt 0:0:3]} dxe4 {[%emt 0:0:3]} 31. fxe4 {[%emt 0:0:1]
} Nc6 {[%emt 0:0:3]} 32. e5+ {[%emt 0:0:40]} Kd7 {[%emt 0:0:0]} 33. Rd5+ {[%emt 0:0:27]} Ke7 {[%emt 0:0:30]} 34. Rc1 {[%emt 0:0:1]} Nd8 {[%emt 0:0:15]} 35. Rc7+ {[%emt 0:0:7]} Ke8 {[%emt 0:0:0]} 36. Rd6 {[%emt 0:0:24]
} a5 {[%emt 0:0:19]} 37. Rb6 {[%emt 0:0:27]} Ne6 {[%emt 0:0:0]} 38. Rc1 {[%emt 0:0:16]} Nxd4 {[%emt 0:0:3]} 39. Rb7 {[%emt 0:0:9]} a4 {[%emt 0:0:24]} 40. Rcc7 {[%emt 0:0:9]} Nf5 {[%emt 0:0:2]} 41. Rxb5 {[%emt 0:0:11]
} a3 {[%emt 0:0:5]} 42. Rb1 {[%emt 0:0:4]} a2 {[%emt 0:0:21]
} 43. Ra1 {[%emt 0:0:1]} Ra3 {[%emt 0:0:12]} 44. Kf2 {[%emt 0:0:21]} Nd4 {[%emt 0:0:11]
} 45. Rc4 {[%emt 0:0:13]} Nb3 {[%emt 0:0:6]} 46. Rc3 {[%emt 0:0:0]} Ke7 {[%emt 0:0:1]} 47. Re3 {[%emt 0:0:20]} Ke6 {[%emt 0:0:7]} 48. h4 {[%emt 0:0:8]} Kd5 {[%emt 0:0:9]} 49. Kg3 {[%emt 0:0:10]} Kc4 {[%emt 0:0:0]} 50. Kf4 {[%emt 0:0:13]} Ra6 {[%emt 0:0:20]} 51. Rxa2 {[%emt 0:0:9]} Rxa2 {[%emt 0:0:2]} 52. e6 {[%emt 0:0:1]} fxe6 {[%emt 0:0:14]} 53. Rxe6 {[%emt 0:0:0]
} Rf2+ {[%emt 0:0:19]} 54. Kg3 {[%emt 0:0:8]} Rf6 {[%emt 0:0:0]} 55. Re7 {[%emt 0:0:2]} Nd4 {[%emt 0:0:1]} 56. Kg4 {[%emt 0:0:12]} Ne6 {[%emt 0:0:1]} 57. Rd7 {[%emt 0:0:0]} Kc5 {[%emt 0:0:14]} 58. Kg3 {[%emt 0:0:0]
} Kc6 {[%emt 0:0:2]} 59. Rd1 {[%emt 0:0:3]} Rf5 {[%emt 0:0:0]} 60. Kg4 {[%emt 0:0:1]} Rd5 {[%emt 0:0:7]} 0-1

[Event "FIDE World Rapid-ch Open 2018"]
[White "Akopian, Vladimir"]
[Black "Inarkiev, Ernesto"]
[Site "St. Petersburg"]
[Round "11.22"]
[Annotator "ChessBase"]
[Result "1/2-1/2"]
[Date "2018.12.28"]
[WhiteElo "2650"]
[BlackElo "2693"]
[PlyCount "125"]
[TimeControl "900+10"]

1. e4 {[%emt 0:0:0]} c5 {[%emt 0:0:0]} 2. Nf3 {[%emt 0:0:0]} e6 {[%emt 0:0:0]} 3. b3 {[%emt 0:0:23]} b6 {[%emt 0:0:0]} 4. Bb2 {[%emt 0:0:33]} Bb7 {[%emt 0:0:0]} 5. Qe2 {[%emt 0:1:4]} Nc6 {[%emt 0:0:0]} 6. g3 {[%emt 0:0:0]} Nf6 {[%emt 0:0:58]} 7. Bg2 {[%emt 0:0:21]} d6 {[%emt 0:0:51]} 8. 0-0 {[%emt 0:0:7]} e5 {[%emt 0:0:1]} 9. Nc3 {[%emt 0:1:32]} g6 {[%emt 0:0:36]
} 10. Nd5 {[%emt 0:0:37]} Bg7 {[%emt 0:0:3]} 11. c4 {[%emt 0:1:29]} 0-0 {[%emt 0:0:3]
} 12. d3 {[%emt 0:0:2]} Bc8 {[%emt 0:1:21]} 13. h3 {[%emt 0:0:0]} Rb8 {[%emt 0:0:1]} 14. Nh2 {[%emt 0:0:44]} b5 {[%emt 0:0:19]} 15. Rab1 {[%emt 0:1:8]} bxc4 {[%emt 0:0:26]} 16. bxc4 {[%emt 0:0:7]} Nxd5 {[%emt 0:0:16]
} 17. exd5 {[%emt 0:2:17]} Nd4 {[%emt 0:0:57]} 18. Bxd4 {[%emt 0:0:19]
} Rxb1 {[%emt 0:0:2]} 19. Rxb1 {[%emt 0:0:0]} exd4 {[%emt 0:0:0]} 20. Qd2 {[%emt 0:0:8]} Qc7 {[%emt 0:1:17]} 21. h4 {[%emt 0:0:32]} Bf5 {[%emt 0:0:7]} 22. g4 {[%emt 0:1:13]} Bd7 {[%emt 0:0:3]} 23. g5 {[%emt 0:1:11]
} Rb8 {[%emt 0:2:40]} 24. Rb3 {[%emt 0:0:17]} Rxb3 {[%emt 0:0:0]} 25. axb3 {[%emt 0:0:1]} Qb6 {[%emt 0:0:1]} 26. Qd1 {[%emt 0:0:14]} Qb4 {[%emt 0:0:1]} 27. Bf3 {[%emt 0:0:56]} h5 {[%emt 0:0:27]} 28. gxh6 {[%emt 0:0:10]
} Bxh6 {[%emt 0:0:1]} 29. Bg4 {[%emt 0:0:6]} Be8 {[%emt 0:0:0]} 30. h5 {[%emt 0:0:6]} f5 {[%emt 0:1:16]} 31. Bh3 {[%emt 0:0:4]} gxh5 {[%emt 0:0:1]} 32. Bxf5 {[%emt 0:0:3]} Qd2 {[%emt 0:0:2]} 33. Qf3 {[%emt 0:1:34]
} Qg5+ {[%emt 0:1:10]} 34. Kf1 {[%emt 0:0:18]} Kg7 {[%emt 0:0:0]} 35. Qh3 {[%emt 0:0:27]} Qc1+ {[%emt 0:0:31]} 36. Kg2 {[%emt 0:0:2]} Qg5+ {[%emt 0:0:4]} 37. Kf1 {[%emt 0:0:2]} Qc1+ {[%emt 0:0:2]} 38. Kg2 {[%emt 0:0:2]
} Qf4 {[%emt 0:0:9]} 39. Nf1 {[%emt 0:0:40]} Bg5 {[%emt 0:0:0]} 40. Be4 {[%emt 0:0:40]} Bh4 {[%emt 0:0:55]} 41. Ng3 {[%emt 0:0:44]} Bxg3 {[%emt 0:1:27]} 42. fxg3 {[%emt 0:0:2]} Qd2+ {[%emt 0:0:34]} 43. Kg1 {[%emt 0:0:15]
} Qg5 {[%emt 0:0:1]} 44. Kh2 {[%emt 0:0:16]} Qe5 {[%emt 0:0:0]} 45. Kg2 {[%emt 0:0:24]} Bg6 {[%emt 0:1:29]} 46. Qd7+ {[%emt 0:0:12]} Kh6 {[%emt 0:0:0]} 47. Bxg6 {[%emt 0:0:5]} Kxg6 {[%emt 0:0:1]} 48. Kh3 {[%emt 0:0:31]
} a5 {[%emt 0:0:1]} 49. Qc8 {[%emt 0:0:9]} Qf6 {[%emt 0:0:0]} 50. Qe8+ {[%emt 0:0:9]} Kh6 {[%emt 0:0:1]} 51. Qe4 {[%emt 0:0:11]} Kg7 {[%emt 0:0:21]} 52. Kg2 {[%emt 0:0:13]} Qf7 {[%emt 0:0:3]} 53. Qh4 {[%emt 0:0:11]
} Kg6 {[%emt 0:0:28]} 54. g4 {[%emt 0:0:14]} hxg4 {[%emt 0:0:0]} 55. Qxg4+ {[%emt 0:0:2]} Kh7 {[%emt 0:0:4]} 56. Qh4+ {[%emt 0:0:8]} Kg7 {[%emt 0:0:2]} 57. Qg4+ {[%emt 0:0:22]} Kh6 {[%emt 0:0:7]} 58. Qh4+ {[%emt 0:0:6]
} Qh5 {[%emt 0:0:5]} 59. Kg3 {[%emt 0:0:11]} Kg6 {[%emt 0:0:0]} 60. Qxh5+ {[%emt 0:0:12]} Kxh5 {[%emt 0:0:1]} 61. Kf4 {[%emt 0:0:1]} Kg6 {[%emt 0:0:14]} 62. Kg4 {[%emt 0:0:2]} Kf6 {[%emt 0:0:2]} 63. Kf4 {[%emt 0:0:21]
 Ke5+ Ke4+} 1/2-1/2

[Event "FIDE World Rapid-ch Open 2018"]
[White "Amonatov, Farrukh"]
[Black "Sarana, Alexey"]
[Site "St. Petersburg"]
[Round "11.23"]
[Annotator "ChessBase"]
[Result "1-0"]
[Date "2018.12.28"]
[WhiteElo "2614"]
[BlackElo "2618"]
[PlyCount "57"]
[TimeControl "900+10"]

1. e4 {[%emt 0:5:11]} c5 {[%emt 0:0:0]} 2. Nf3 {[%emt 0:0:1]} d6 {[%emt 0:0:0]} 3. d4 {[%emt 0:0:1]} cxd4 {[%emt 0:0:0]} 4. Nxd4 {[%emt 0:0:1]} Nf6 {[%emt 0:0:0]} 5. Nc3 {[%emt 0:0:1]} a6 {[%emt 0:0:0]} 6. f4 {[%emt 0:0:1]
} e5 {[%emt 0:0:1]} 7. Nf3 {[%emt 0:0:1]} Qc7 {[%emt 0:1:14]
} 8. Bd3 {[%emt 0:0:2]} Be7 {[%emt 0:0:15]} 9. Qe2 {[%emt 0:0:1]} Nbd7 {[%emt 0:0:37]
} 10. g4 {[%emt 0:0:2]} exf4 {[%emt 0:3:46]} 11. Bxf4 {[%emt 0:2:17]
} Ne5 {[%emt 0:1:41]} 12. g5 {[%emt 0:1:1]} Nh5 {[%emt 0:0:0]} 13. Nd5 {[%emt 0:0:29]} Qd8 {[%emt 0:1:21]} 14. Bxe5 {[%emt 0:0:5]} dxe5 {[%emt 0:0:3]} 15. Nxe5 {[%emt 0:0:41]} Nf4 {[%emt 0:1:54]} 16. Qf3 {[%emt 0:0:2]
} Nxd3+ {[%emt 0:0:18]} 17. cxd3 {[%emt 0:0:32]} Be6 {[%emt 0:0:0]} 18. 0-0-0 0-0 {[%emt 0:0:52]} 19. Kb1 {[%emt 0:3:21]} Bxd5 {[%emt 0:0:0]} 20. exd5 {[%emt 0:0:1]} Bd6 {[%emt 0:0:1]} 21. d4 {[%emt 0:0:8]} Qxg5 {[%emt 0:0:17]} 22. Rhg1 {[%emt 0:0:1]} Qe7 {[%emt 0:1:16]} 23. Nd7 {[%emt 0:1:21]
} Bxh2 {[%emt 0:2:8]} 24. Nf6+ {[%emt 0:0:8]} Kh8 {[%emt 0:0:0]} 25. Rxg7 {[%emt 0:0:2]} Kxg7 {[%emt 0:0:5]} 26. Qg4+ {[%emt 0:0:0]} Kh6 {[%emt 0:0:26]} 27. Qh5+ {[%emt 0:0:1]} Kg7 {[%emt 0:0:1]} 28. Qg5+ {[%emt 0:0:2]} Kh8 {[%emt 0:0:2]} 29. Qh6 {[%emt 0:0:14]} 1-0

[Event "FIDE World Rapid-ch Open 2018"]
[White "Bocharov, Dmitry"]
[Black "Sakaev, Konstantin"]
[Site "St. Petersburg"]
[Round "11.24"]
[Annotator "ChessBase"]
[Result "0-1"]
[Date "2018.12.28"]
[WhiteElo "2533"]
[BlackElo "2584"]
[PlyCount "100"]
[TimeControl "900+10"]

1. e4 {[%emt 0:0:0]} c5 {[%emt 0:0:0]} 2. Nf3 {[%emt 0:0:0]} d6 {[%emt 0:0:0]} 3. d4 {[%emt 0:0:5]} cxd4 {[%emt 0:0:0]} 4. Nxd4 {[%emt 0:0:2]} Nf6 {[%emt 0:0:0]} 5. Nc3 {[%emt 0:0:3]} a6 {[%emt 0:0:0]} 6. Nb3 {[%emt 0:0:29]
} g6 {[%emt 0:0:57]} 7. Be2 {[%emt 0:0:8]} Bg7 {[%emt 0:0:5]
} 8. g4 {[%emt 0:0:7]} h6 {[%emt 0:0:30]} 9. Be3 {[%emt 0:0:55]} Nbd7 {[%emt 0:0:22]
} 10. f4 {[%emt 0:3:36]} b5 {[%emt 0:1:25]} 11. Bf3 {[%emt 0:0:0]} Bb7 {[%emt 0:2:12]} 12. a3 {[%emt 0:4:16]} Rc8 {[%emt 0:0:54]} 13. 0-0 {[%emt 0:0:3]} 0-0 {[%emt 0:1:17]} 14. Qe2 {[%emt 0:1:2]} Nb6 {[%emt 0:1:30]
} 15. Rad1 {[%emt 0:1:58]} Nc4 {[%emt 0:2:0]} 16. e5 {[%emt 0:0:0]} Bxf3 {[%emt 0:0:4]} 17. Qxf3 {[%emt 0:0:2]} Nxg4 {[%emt 0:1:24]} 18. Bd4 {[%emt 0:0:6]} h5 {[%emt 0:0:23]} 19. exd6 {[%emt 0:0:56]} Bxd4+ {[%emt 0:1:5]
} 20. Nxd4 {[%emt 0:0:12]} Qxd6 {[%emt 0:0:49]} 21. Ne4 {[%emt 0:1:23]
} Qb6 {[%emt 0:0:13]} 22. f5 {[%emt 0:1:22]} Nce3 {[%emt 0:0:0]} 23. h3 {[%emt 0:0:13]} Nxd1 {[%emt 0:0:53]} 24. Rxd1 {[%emt 0:0:7]} Nf6 {[%emt 0:0:26]} 25. fxg6 {[%emt 0:0:15]} fxg6 {[%emt 0:0:35]} 26. Kh1 {[%emt 0:0:8]
} Nxe4 {[%emt 0:0:21]} 27. Qxe4 {[%emt 0:0:2]} Rf6 {[%emt 0:0:0]} 28. c3 {[%emt 0:0:16]} Rcf8 {[%emt 0:0:15]} 29. Rd2 {[%emt 0:0:11]} Qd6 {[%emt 0:0:18]} 30. Kg2 {[%emt 0:0:2]} R8f7 {[%emt 0:0:21]} 31. Re2 {[%emt 0:0:5]
} e5 {[%emt 0:0:9]} 32. Nc2 {[%emt 0:0:11]} Qc6 {[%emt 0:0:0]} 33. Qxc6 {[%emt 0:0:3]} Rxc6 {[%emt 0:0:1]} 34. Rxe5 {[%emt 0:0:3]} Rcf6 {[%emt 0:0:11]} 35. Re2 {[%emt 0:0:1]} Kh7 {[%emt 0:0:26]} 36. Nd4 {[%emt 0:0:6]
} Kh6 {[%emt 0:0:3]} 37. Kg3 {[%emt 0:0:11]} g5 {[%emt 0:0:0]} 38. Kg2 {[%emt 0:0:21]} h4 {[%emt 0:0:2]} 39. Nb3 {[%emt 0:0:14]} Kh5 {[%emt 0:0:9]} 40. Nc5 {[%emt 0:0:1]} Rc6 {[%emt 0:0:16]} 41. Nd3 {[%emt 0:0:7]
} Rd6 {[%emt 0:0:6]} 42. Nf2 {[%emt 0:0:4]} Rf8 {[%emt 0:0:0]} 43. Ne4 {[%emt 0:0:3]} Rd5 {[%emt 0:0:10]} 44. Nf2 {[%emt 0:0:12]} Kg6 {[%emt 0:0:8]} 45. Ng4 {[%emt 0:0:7]} Rd6 {[%emt 0:0:3]} 46. Ne5+ {[%emt 0:0:6]
} Kh5 {[%emt 0:0:8]} 47. Ng4 {[%emt 0:0:10]} Rfd8 {[%emt 0:0:0]} 48. Re5 {[%emt 0:0:40]} Rd2+ {[%emt 0:0:7]} 49. Kf3 {[%emt 0:0:2]} Rf8+ {[%emt 0:0:11]} 50. Ke3 {[%emt 0:0:7]} Rg2 {[%emt 0:0:28]} 0-1

[Event "FIDE World Rapid-ch Open 2018"]
[White "Paravyan, David"]
[Black "Fridman, Daniel"]
[Site "St. Petersburg"]
[Round "11.25"]
[Annotator "ChessBase"]
[Result "1-0"]
[Date "2018.12.28"]
[WhiteElo "2634"]
[BlackElo "2633"]
[PlyCount "143"]
[TimeControl "900+10"]

1. d4 {[%emt 0:0:0]} d5 {[%emt 0:0:0]} 2. c4 {[%emt 0:0:0]} e6 {[%emt 0:0:0]} 3. Nf3 {[%emt 0:0:0]} Nf6 4. g3 dxc4 {[%emt 0:0:0]} 5. Bg2 {[%emt 0:0:0]
} c5 {[%emt 0:0:0]} 6. 0-0 {[%emt 0:0:0]} Nc6 {[%emt 0:0:0]
} 7. Nbd2 {[%emt 0:0:3]} cxd4 {[%emt 0:0:20]} 8. Nxc4 {[%emt 0:0:2]} Bc5 {[%emt 0:0:2]
} 9. a3 {[%emt 0:0:1]} a5 {[%emt 0:0:14]} 10. b3 {[%emt 0:0:0]} 0-0 {[%emt 0:0:4]} 11. Bb2 {[%emt 0:0:0]} Qc7 {[%emt 0:0:33]} 12. Nxd4 {[%emt 0:0:59]} Rd8 {[%emt 0:0:2]} 13. Nb5 {[%emt 0:2:51]} Qe7 {[%emt 0:0:2]
} 14. Qc1 {[%emt 0:1:44]} e5 {[%emt 0:6:54]} 15. Qc3 {[%emt 0:0:0]} e4 {[%emt 0:0:56]} 16. Rac1 {[%emt 0:0:54]} Bg4 {[%emt 0:1:26]} 17. Ne5 {[%emt 0:1:40]} Qxe5 {[%emt 0:1:56]} 18. Qxe5 {[%emt 0:0:4]} Nxe5 {[%emt 0:0:1]
} 19. Rxc5 {[%emt 0:0:3]} Nc6 {[%emt 0:0:17]} 20. Re1 {[%emt 0:0:47]
} Rd2 {[%emt 0:1:15]} 21. Bxf6 {[%emt 0:0:6]} gxf6 {[%emt 0:0:0]} 22. Nc3 {[%emt 0:1:7]} Kg7 {[%emt 0:1:18]} 23. Bxe4 {[%emt 0:0:16]} Nd4 {[%emt 0:0:4]} 24. f3 {[%emt 0:0:31]} Nxb3 {[%emt 0:0:4]} 25. Rc7 {[%emt 0:0:52]
} Rc8 {[%emt 0:0:17]} 26. Rxc8 Bxc8 {[%emt 0:0:1]} 27. Kf2 {[%emt 0:2:34]
} Nc5 {[%emt 0:0:22]} 28. Rb1 {[%emt 0:1:5]} f5 {[%emt 0:0:0]} 29. Bd5 {[%emt 0:0:20]} Rc2 {[%emt 0:0:3]} 30. Nd1 {[%emt 0:0:30]} Be6 {[%emt 0:0:17]} 31. Ne3 {[%emt 0:0:21]} Rc3 {[%emt 0:0:2]} 32. Rb5 {[%emt 0:0:24]
} b6 {[%emt 0:0:12]} 33. Rxb6 {[%emt 0:0:23]} Rxa3 {[%emt 0:0:0]} 34. Rb5 {[%emt 0:0:18]} Nb3 {[%emt 0:1:2]} 35. Bxb3 {[%emt 0:1:12]} Bxb3 {[%emt 0:0:2]} 36. Nxf5+ {[%emt 0:0:1]} Kf6 {[%emt 0:0:1]} 37. Nd4 {[%emt 0:0:8]
} a4 {[%emt 0:0:9]} 38. f4 {[%emt 0:0:14]} Bc4 {[%emt 0:0:17]
} 39. Rb6+ {[%emt 0:0:1]} Ke7 {[%emt 0:0:2]} 40. Nc6+ {[%emt 0:0:20]} Kf8 {[%emt 0:0:3]} 41. Ne5 {[%emt 0:0:4]} Bd5 {[%emt 0:0:37]} 42. f5 {[%emt 0:0:0]} Kg7 {[%emt 0:1:2]} 43. Rd6 {[%emt 0:0:3]} Bb3 {[%emt 0:0:12]} 44. g4 {[%emt 0:0:10]} f6 {[%emt 0:0:15]} 45. Rd7+ {[%emt 0:0:22]} Kf8 {[%emt 0:0:0]} 46. Nd3 {[%emt 0:0:6]} Bc4 {[%emt 0:0:10]} 47. Nf4 {[%emt 0:0:19]} Ra1 {[%emt 0:0:13]} 48. Rc7 {[%emt 0:0:19]} Bb3 {[%emt 0:0:13]} 49. Ne6+ {[%emt 0:0:10]
} Ke8 {[%emt 0:0:4]} 50. Nd4 {[%emt 0:0:13]} Bd5 {[%emt 0:0:0]} 51. Rc5 {[%emt 0:0:14]} Bf7 {[%emt 0:0:6]} 52. Ra5 {[%emt 0:0:5]} a3 {[%emt 0:0:1]} 53. Nc2 {[%emt 0:0:2]} Rh1 {[%emt 0:0:17]} 54. Kg2 {[%emt 0:0:0]
} Rd1 {[%emt 0:0:8]} 55. Rxa3 {[%emt 0:0:6]} Rd2 {[%emt 0:0:0]} 56. Re3+ {[%emt 0:0:1]} Kf8 {[%emt 0:0:2]} 57. Ne1 {[%emt 0:0:3]} h5 {[%emt 0:0:4]} 58. Nf3 {[%emt 0:0:16]} Rd5 {[%emt 0:0:6]} 59. h3 {[%emt 0:0:0]} hxg4 {[%emt 0:0:1]} 60. hxg4 {[%emt 0:0:0]} Ra5 {[%emt 0:0:0]} 61. Kg3 {[%emt 0:0:1]} Ra2 {[%emt 0:0:4]} 62. Nd4 {[%emt 0:0:12]} Ra1 {[%emt 0:0:9]
} 63. Ne6+ {[%emt 0:0:2]} Kg8 {[%emt 0:0:6]} 64. Re4 {[%emt 0:0:20]
} Rg1+ {[%emt 0:0:6]} 65. Kf2 {[%emt 0:0:1]} Rh1 {[%emt 0:0:0]} 66. Nc7 {[%emt 0:0:8]} Kf8 {[%emt 0:0:4]} 67. Ne6+ {[%emt 0:0:4]} Kg8 {[%emt 0:0:10]} 68. Nf4 {[%emt 0:0:24]} Kf8 {[%emt 0:0:3]} 69. Rb4 {[%emt 0:0:4]
} Rd1 {[%emt 0:0:11]} 70. Rb8+ Ke7 71. Ng6+ {[%emt 0:0:42]} Kd7 {[%emt 0:0:17]} 72. Rb7+ {[%emt 0:0:8]} 1-0

[Event "FIDE World Rapid-ch Open 2018"]
[White "Riazantsev, Alexander"]
[Black "Hovhannisyan, Robert"]
[Site "St. Petersburg"]
[Round "11.26"]
[Annotator "ChessBase"]
[Result "1-0"]
[Date "2018.12.28"]
[WhiteElo "2649"]
[BlackElo "2637"]
[PlyCount "97"]
[TimeControl "900+10"]

1. d4 {[%emt 0:0:0]} d5 {[%emt 0:0:0]} 2. c4 {[%emt 0:0:0]} e6 {[%emt 0:0:0]} 3. Nf3 {[%emt 0:0:0]} Nf6 {[%emt 0:0:0]} 4. Bg5 {[%emt 0:0:0]} dxc4 {[%emt 0:0:8]} 5. e4 {[%emt 0:0:10]} b5 {[%emt 0:0:7]} 6. a4 {[%emt 0:0:1]
} c6 {[%emt 0:0:8]} 7. Nc3 {[%emt 0:0:1]} b4 {[%emt 0:0:11]} 8. Nb1 {[%emt 0:0:33]} Ba6 {[%emt 0:0:3]} 9. e5 {[%emt 0:1:46]} h6 {[%emt 0:0:8]
} 10. Bxf6 {[%emt 0:0:1]} gxf6 {[%emt 0:0:3]} 11. exf6 {[%emt 0:0:1]
} Qxf6 {[%emt 0:1:32]} 12. Nbd2 {[%emt 0:0:25]} c3 {[%emt 0:0:0]} 13. bxc3 bxc3 {[%emt 0:1:40]} 14. Ne4 {[%emt 0:0:3]} Qf4 {[%emt 0:0:0]} 15. Bd3 {[%emt 0:2:40]} Bb4 {[%emt 0:6:21]} 16. 0-0 {[%emt 0:0:17]} Rg8 {[%emt 0:0:14]} 17. g3 {[%emt 0:1:39]} c2 {[%emt 0:1:48]} 18. Qxc2 {[%emt 0:0:0]} Bxd3 {[%emt 0:0:44]} 19. Qxd3 {[%emt 0:0:1]} Rg4 {[%emt 0:0:1]} 20. Nc5 {[%emt 0:3:52]} Bxc5 {[%emt 0:1:18]} 21. dxc5 {[%emt 0:0:3]} Nd7 {[%emt 0:0:4]
} 22. Rfd1 {[%emt 0:2:22]} Rd8 {[%emt 0:0:11]} 23. h3 {[%emt 0:0:0]} Rg8 {[%emt 0:0:28]} 24. Rac1 {[%emt 0:0:52]} Qc7 {[%emt 0:1:14]} 25. Kg2 {[%emt 0:0:50]} Nf8 {[%emt 0:1:1]} 26. Qxd8+ {[%emt 0:0:38]} Qxd8 {[%emt 0:0:1]
} 27. Rxd8+ {[%emt 0:0:1]} Kxd8 28. Ne5 Kc7 {[%emt 0:0:16]} 29. Nxf7 {[%emt 0:0:4]} h5 {[%emt 0:0:3]} 30. Ne5 {[%emt 0:0:37]} Ng6 {[%emt 0:0:22]
} 31. Nxg6 {[%emt 0:0:2]} Rxg6 {[%emt 0:0:1]} 32. f4 {[%emt 0:0:7]
} Rf6 {[%emt 0:0:17]} 33. Kf3 {[%emt 0:0:51]} e5 {[%emt 0:0:0]} 34. Re1 {[%emt 0:0:7]} exf4 {[%emt 0:0:2]} 35. gxf4 {[%emt 0:0:0]} Kb7 {[%emt 0:0:13]} 36. Re5 {[%emt 0:0:8]} Ka6 {[%emt 0:0:10]} 37. f5 {[%emt 0:0:10]
} Ka5 {[%emt 0:0:13]} 38. Kf4 {[%emt 0:0:1]} Rf8 {[%emt 0:0:0]} 39. Kg5 {[%emt 0:0:25]} Kxa4 {[%emt 0:0:22]} 40. f6 {[%emt 0:0:1]} a5 {[%emt 0:0:9]} 41. Kg6 {[%emt 0:0:1]} Kb4 {[%emt 0:0:8]} 42. f7 {[%emt 0:0:0]} a4 {[%emt 0:0:2]} 43. Rxh5 {[%emt 0:0:22]} a3 {[%emt 0:0:6]} 44. Rf5 {[%emt 0:0:3]} a2 {[%emt 0:0:23]} 45. Rf1 {[%emt 0:0:1]} Ra8 {[%emt 0:0:0]} 46. Kg7 {[%emt 0:0:2]} Kxc5 {[%emt 0:0:7]} 47. f8=Q+ {[%emt 0:0:0]} Rxf8 {[%emt 0:0:1]} 48. Kxf8 {[%emt 0:0:1]} Kb4 {[%emt 0:0:11]} 49. h4 {[%emt 0:0:5]} 1-0